bitfinex/quotes_SOLUSD_20241111
["timestamp","ask_amount","ask_price","bid_price","bid_amount"]
[1731349676295,3.31948845,217.26,217.11,28.52827868]
[1731349676492,3.31948845,217.25,217.11,28.52827868]
[1731349676708,38.08238051,217.27,217.11,28.52827868]
[1731349676908,3.31907347,217.26,217.12,28.52827868]
[1731349677218,38.08238051,217.27,217.12,28.52827868]
[1731349677409,3.31714518,217.26,217.12,28.52827868]
[1731349677586,38.08238051,217.27,217.13,28.52827868]
[1731349677785,3.31699006,217.26,217.11,28.52827868]
[1731349677989,38.08238051,217.27,217.11,28.52827868]
[1731349678295,3.31688167,217.26,217.13,28.52827868]
[1731349678494,38.08238051,217.27,217.13,28.52827868]
[1731349680203,38.08238051,217.27,217.12,28.52827868]
[1731349680405,38.08238051,217.27,217.13,20.0]
[1731349681106,38.08238051,217.27,217.13,48.52827868]
[1731349681492,38.08238051,217.27,217.14,28.52827868]
[1731349681813,38.08238051,217.27,217.16,28.52827868]
[1731349682002,38.08238051,217.27,217.17,28.52827868]
[1731349682516,38.08238051,217.27,217.18,20.0]
[1731349682702,38.08238051,217.27,217.19,28.52827868]
[1731349683090,0.13854689,217.19,217.18,48.52827868]
[1731349683290,38.08238051,217.27,217.23,161.16145311]
[1731349683511,38.08238051,217.27,217.19,48.52827868]
[1731349683715,38.08238051,217.27,217.24,28.52827868]
[1731349684014,38.08238051,217.27,217.26,28.52827868]
[1731349684199,38.08238051,217.27,217.26,72.30516268]
[1731349688101,38.08238051,217.27,217.15,15.532]
[1731349688303,38.08238051,217.27,217.21,28.52827868]
[1731349688505,18.391441,217.55,217.15,15.632]
[1731349688506,20.0,217.52,217.3,123.21761949]
[1731349688696,8.62741272,217.51,217.26,28.52827868]
[1731349688892,3.31823566,217.5,217.26,28.52827868]
[1731349689195,3.31823566,217.49,217.28,28.52827868]
[1731349689394,3.31823566,217.48,217.27,6.3374]
[1731349689590,3.31823566,217.47,217.32,48.52827868]
[1731349689801,3.31823566,217.46,217.32,48.52827868]
[1731349690009,5.30900705,217.55,217.32,48.52827868]
[1731349690316,5.30900705,217.55,217.27,6.3374]
[1731349690317,3.31820287,217.54,217.36,20.0]
[1731349690496,3.31820287,217.54,217.37,28.52827868]
[1731349690703,3.31820287,217.53,217.38,20.0]
[1731349690908,3.31820287,217.52,217.38,20.0]
[1731349691109,3.31820287,217.51,217.34,20.0]
[1731349691417,3.31820287,217.5,217.34,20.0]
[1731349691723,3.31820287,217.49,217.34,20.0]
[1731349691896,3.31820287,217.48,217.34,20.0]
[1731349692093,3.31820287,217.47,217.34,20.0]
[1731349692311,3.31820287,217.46,217.29,20.0]
[1731349692495,3.31820287,217.45,217.27,6.3374]
[1731349692699,3.31820287,217.44,217.27,6.3374]
[1731349692903,3.31820287,217.43,217.27,6.4374]
[1731349693207,5.30900705,217.5,217.28,28.52827868]
[1731349693416,3.31858179,217.49,217.28,28.52827868]
[1731349693719,3.31858179,217.49,217.29,23.776884]
[1731349693913,8.62758884,217.51,217.29,23.776884]
[1731349694214,3.31858179,217.5,217.3,20.0]
[1731349694406,3.31858179,217.49,217.3,20.0]
[1731349694611,3.31858179,217.48,217.3,20.0]
[1731349694810,3.31858179,217.47,217.3,20.0]
[1731349695107,3.31858179,217.46,217.34,28.52827868]
[1731349695319,5.30820754,217.6,217.35,20.0]
[1731349695498,3.6763,217.61,217.35,20.0]
[1731349695499,9.21204588,217.59,217.35,20.0]
[1731349695701,3.31744556,217.58,217.35,20.0]
[1731349695916,3.31744556,217.57,217.34,28.52827868]
[1731349696101,3.31744556,217.56,217.33,20.0]
[1731349696296,5.89460032,217.55,217.35,20.0]
[1731349696501,3.31744556,217.54,217.35,20.0]
[1731349697421,5.89460032,217.53,217.35,20.0]
[1731349697601,3.31744556,217.52,217.33,20.0]
[1731349697803,5.89460032,217.51,217.33,20.0]
[1731349698121,3.31744556,217.5,217.33,20.0]
[1731349698819,8.6256531,217.5,217.35,20.0]
[1731349699024,3.31744556,217.49,217.35,20.0]
[1731349699318,3.31744556,217.48,217.33,20.0]
[1731349699501,3.31744556,217.47,217.3,28.52827868]
[1731349699699,3.31744556,217.46,217.3,28.52827868]
[1731349699899,5.89460032,217.51,217.3,28.52827868]
[1731349700129,5.31321719,217.49,217.31,23.776884]
[1731349700418,3.32057883,217.48,217.31,23.776884]
[1731349700821,5.89460032,217.47,217.28,28.52827868]
[1731349701023,3.32057883,217.46,217.28,28.52827868]
[1731349701208,3.32057883,217.45,217.28,28.52827868]
[1731349701408,3.32057883,217.44,217.28,28.52827868]
[1731349701624,5.31321719,217.52,217.28,28.52827868]
[1731349701625,3.32057883,217.43,217.28,28.52827868]
[1731349701823,3.32057883,217.42,217.28,28.52827868]
[1731349702013,5.31658095,217.5,217.3,28.52827868]
[1731349702222,5.31658095,217.5,217.33,20.0]
[1731349702223,3.32257995,217.5,217.33,20.0]
[1731349702415,3.32257995,217.5,217.33,48.52827868]
[1731349702611,3.32257995,217.49,217.33,48.52827868]
[1731349702806,3.32257995,217.55,217.33,48.52827868]
[1731349703018,3.32257995,217.55,217.35,48.52827868]
[1731349703224,9.02290249,217.55,217.35,20.0]
[1731349703412,8.6391609,217.54,217.35,20.0]
[1731349703603,8.6391609,217.53,217.34,20.0]
[1731349703809,8.6391609,217.52,217.34,20.0]
[1731349704015,5.70032254,217.55,217.34,20.0]
[1731349704016,8.6391609,217.51,217.34,20.0]
[1731349704227,8.6391609,217.5,217.32,20.0]
[1731349704514,9.37762254,217.55,217.32,20.0]
[1731349704829,14.33906905,217.54,217.32,20.0]
[1731349705124,8.63874651,217.53,217.32,20.0]
[1731349705330,14.33906905,217.52,217.32,20.0]
[1731349705515,8.63874651,217.51,217.29,28.52827868]
[1731349705712,8.63874651,217.5,217.27,34.86567868]
[1731349706028,8.63874651,217.49,217.28,23.776884]
[1731349706328,8.63874651,217.48,217.28,23.776884]
[1731349706630,8.63874651,217.47,217.29,20.0]
[1731349706827,8.63874651,217.46,217.29,20.0]
[1731349707011,3.32259481,217.45,217.29,20.0]
[1731349707213,3.32259481,217.44,217.29,20.0]
[1731349707429,3.32259481,217.44,217.25,111.4782]
[1731349707430,3.32259481,217.43,217.25,15.8782]
[1731349707609,3.32259481,217.42,217.25,15.8782]
[1731349707806,3.32259481,217.41,217.25,15.8782]
[1731349708019,5.70032254,217.44,217.25,15.8782]
[1731349708221,3.32046664,217.43,217.25,15.8782]
[1731349708422,3.32046664,217.42,217.25,15.8782]
[1731349708632,3.32046664,217.41,217.26,20.0]
[1731349708813,5.70032254,217.44,217.26,20.0]
[1731349709018,3.32012787,217.43,217.22,28.52827868]
[1731349709233,3.32012787,217.42,217.24,28.52827868]
[1731349710716,9.02045041,217.42,217.24,20.0]
[1731349710915,3.32012787,217.41,217.24,20.0]
[1731349711115,3.32012787,217.4,217.24,20.0]
[1731349711321,5.70032254,217.42,217.24,20.0]
[1731349711634,3.31930045,217.41,217.26,20.0]
[1731349711940,3.31930045,217.4,217.26,20.0]
[1731349712113,5.70032254,217.42,217.27,28.52827868]
[1731349712317,5.70032254,217.42,217.21,6.5447]
[1731349712318,3.31882055,217.41,217.28,20.0]
[1731349712517,3.31882055,217.4,217.28,20.0]
[1731349712716,5.31136994,217.44,217.26,20.0]
[1731349712924,3.31914517,217.43,217.23,28.52827868]
[1731349713234,3.31914517,217.42,217.24,20.0]
[1731349713439,5.70032254,217.41,217.24,20.0]
[1731349713644,3.31914517,217.4,217.24,20.0]
[1731349713822,14.33083765,217.4,217.24,20.0]
[1731349714029,14.33083765,217.39,217.22,20.0]
[1731349714334,8.63051511,217.38,217.2,28.52827868]
[1731349714637,3.31914517,217.37,217.18,28.52827868]
[1731349715137,3.42206396,217.36,217.18,28.52827868]
[1731349715329,3.31914517,217.35,217.18,28.52827868]
[1731349715634,3.42206396,217.34,217.18,28.52827868]
[1731349715826,3.31914517,217.33,217.19,20.0]
[1731349716028,0.10291879,217.32,217.19,20.0]
[1731349716338,3.33146361,217.31,217.19,20.0]
[1731349716640,0.10291879,217.3,217.16,34.67447868]
[1731349716827,3.33146361,217.29,217.16,34.67447868]
[1731349717031,0.10291879,217.28,217.16,34.67447868]
[1731349717339,3.33146361,217.27,217.16,34.67447868]
[1731349717542,0.10291879,217.26,217.16,34.67447868]
[1731349717919,0.10291879,217.26,217.17,20.0]
[1731349718137,3.34007587,217.25,217.15,20.0]
[1731349718431,3.44299466,217.24,217.16,28.52827868]
[1731349718630,0.10291708,217.24,217.22,28.52827868]
[1731349718859,0.10291708,217.24,217.15,20.0]
[1731349719039,0.10291708,217.24,217.22,20.0]
[1731349719624,0.10291708,217.24,217.2,20.0]
[1731349719837,0.10291708,217.24,217.21,28.52827868]
[1731349720137,0.10291708,217.24,217.23,28.52827868]
[1731349721144,0.10291708,217.24,217.21,28.52827868]
[1731349721440,0.10291708,217.24,217.22,20.0]
[1731349721635,0.10291708,217.24,217.23,28.52827868]
[1731349722819,0.10291708,217.24,217.17,2.01610874]
[1731349723022,0.10291708,217.24,217.23,28.52827868]
[1731349723642,0.10291708,217.24,217.22,20.0]
[1731349724024,0.10291708,217.24,217.23,28.52827868]
[1731349724734,3.11979618,217.44,217.23,28.52827868]
[1731349725040,9.06165825,217.43,217.23,28.52827868]
[1731349725245,3.36133571,217.42,217.24,20.0]
[1731349725444,9.06165825,217.41,217.24,20.0]
[1731349725634,3.36133571,217.4,217.24,20.0]
[1731349725940,3.36133571,217.39,217.22,20.0]
[1731349726147,3.36133571,217.38,217.22,20.0]
[1731349726442,3.36133571,217.37,217.22,20.0]
[1731349726625,3.36133571,217.36,217.22,20.0]
[1731349726821,3.36133571,217.35,217.22,20.0]
[1731349727038,3.36133571,217.34,217.22,20.0]
[1731349727237,3.36133571,217.33,217.22,20.0]
[1731349727423,3.36133571,217.32,217.22,20.0]
[1731349727636,3.36133571,217.31,217.22,20.0]
[1731349727832,3.36133571,217.3,217.22,20.0]
[1731349728027,3.36133571,217.4,217.22,20.0]
[1731349728235,9.06165825,217.39,217.22,20.0]
[1731349728444,9.06165825,217.39,217.19,20.0]
[1731349728445,3.36133571,217.38,217.19,20.0]
[1731349728744,3.36133571,217.37,217.22,20.0]
[1731349728945,3.36133571,217.36,217.22,20.0]
[1731349729147,3.36133571,217.35,217.22,20.0]
[1731349729337,3.36362303,217.34,217.22,20.0]
[1731349729651,3.36362303,217.33,217.22,20.0]
[1731349729944,3.36362303,217.32,217.23,28.52827868]
[1731349730125,3.36362303,217.31,217.23,28.52827868]
[1731349730324,3.36362303,217.3,217.23,28.52827868]
[1731349730550,9.379123,217.46,217.25,28.52827868]
[1731349730745,5.70032254,217.45,217.25,28.52827868]
[1731349734351,9.37932254,217.45,217.23,48.52827868]
[1731349734855,5.70032254,217.45,217.23,48.52827868]
[1731349735150,9.379123,217.47,217.27,28.52827868]
[1731349735445,9.379123,217.47,217.28,20.0]
[1731349735757,5.70032254,217.46,217.28,20.0]
[1731349735957,5.70032254,217.46,217.29,28.52827868]
[1731349736128,9.379123,217.47,217.32,20.0]
[1731349736451,9.379123,217.47,217.33,28.52827868]
[1731349737441,3.6778,217.52,217.33,28.52827868]
[1731349737633,8.43498635,217.58,217.42,28.52827868]
[1731349737837,2.32384517,217.74,217.35,0.1]
[1731349737838,2.10178714,217.67,217.46,28.52827868]
[1731349738049,3.6751,217.68,217.46,28.52827868]
[1731349738434,3.6751,217.68,217.35,43.876884]
[1731349738633,0.1,217.67,217.43,28.52827868]
[1731349739040,3.6751,217.68,217.45,28.52827868]
[1731349740150,3.6751,217.68,217.43,28.52827868]
[1731349740657,3.6751,217.68,217.45,28.52827868]
[1731349741654,4.33929477,217.67,217.43,28.52827868]
[1731349741833,3.6754,217.66,217.43,28.52827868]
[1731349742835,3.6754,217.66,217.41,28.52827868]
[1731349743360,3.6751,217.68,217.43,28.52827868]
[1731349743537,3.6751,217.68,217.45,28.52827868]
[1731349743738,3.6751,217.68,217.44,20.0]
[1731349745953,3.74929219,217.7,217.43,28.52827868]
[1731349746138,17.27548696,217.7,217.44,20.0]
[1731349746340,0.07459219,217.68,217.44,20.0]
[1731349746544,4.43929477,217.69,217.44,20.0]
[1731349746734,0.07459219,217.68,217.42,20.0]
[1731349746935,24.43929477,217.69,217.42,20.0]
[1731349746936,0.07459219,217.67,217.42,20.0]
[1731349747231,3.6754,217.66,217.41,28.52827868]
[1731349747442,3.6754,217.66,217.42,20.0]
[1731349748249,3.6751,217.68,217.42,20.0]
[1731349749036,3.74969219,217.68,217.42,20.0]
[1731349749231,3.6751,217.68,217.44,20.0]
[1731349749437,3.6751,217.68,217.45,28.52827868]
[1731349749660,18.46743186,217.71,217.47,52.30516268]
[1731349749846,18.46743186,217.71,217.48,20.0]
[1731349750642,18.46743186,217.71,217.49,23.776884]
[1731349750863,3.6749,217.69,217.47,20.0]
[1731349751968,20.07459219,217.68,217.41,22.9241]
[1731349752145,24.41388696,217.68,217.41,22.9241]
[1731349752537,24.41388696,217.68,217.41,51.45237868]
[1731349753082,24.33929477,217.68,217.43,28.52827868]
[1731349753263,24.33929477,217.68,217.44,20.0]
[1731349753783,24.33929477,217.68,217.45,23.776884]
[1731349753988,3.6752,217.67,217.44,20.0]
[1731349754284,3.6752,217.67,217.45,23.776884]
[1731349754482,3.6752,217.67,217.42,20.0]
[1731349754789,24.33929477,217.66,217.42,20.0]
[1731349755679,23.6756,217.65,217.43,23.776884]
[1731349755981,23.6756,217.65,217.44,20.0]
[1731349757973,20.0,217.65,217.44,20.0]
[1731349758173,4.33929477,217.66,217.44,20.0]
[1731349758374,3.6756,217.65,217.44,20.0]
[1731349758574,23.6756,217.65,217.42,20.0]
[1731349759880,3.6756,217.65,217.42,20.0]
[1731349760073,24.33929477,217.64,217.42,20.0]
[1731349760273,24.33929477,217.64,217.41,22.9241]
[1731349761167,24.33929477,217.64,217.36,2.10250351]
[1731349761168,23.6759,217.63,217.36,6.2547]
[1731349761372,4.56318366,217.62,217.36,6.2547]
[1731349761571,24.56318366,217.62,217.36,6.2547]
[1731349762490,23.6763,217.61,217.36,6.2547]
[1731349762798,20.0,217.58,217.36,6.2547]
[1731349763097,20.0,217.56,217.36,6.2547]
[1731349763287,20.0,217.54,217.36,6.2547]
[1731349763588,20.0,217.52,217.37,20.0]
[1731349763979,23.776884,217.51,217.37,20.0]
[1731349764579,23.776884,217.51,217.36,6.2547]
[1731349764580,20.0,217.5,217.36,6.2547]
[1731349765097,20.0,217.5,217.35,16.2937]
[1731349765390,20.0,217.48,217.32,2.08985217]
[1731349765601,20.0,217.48,217.32,23.776884]
[1731349766594,20.0,217.48,217.33,20.0]
[1731349766979,20.0,217.44,217.29,16.2937]
[1731349770700,20.0,217.44,217.3,28.52827868]
[1731349771607,4.59929477,217.53,217.32,28.52827868]
[1731349771792,3.6774,217.55,217.32,28.52827868]
[1731349772292,5.69401993,217.57,217.32,28.52827868]
[1731349772494,3.6771,217.57,217.34,28.52827868]
[1731349772908,3.6771,217.57,217.31,23.776884]
[1731349772909,3.6767,217.59,217.38,28.52827868]
[1731349773388,3.6767,217.59,217.31,20.0]
[1731349773585,3.6767,217.59,217.32,28.52827868]
[1731349773586,4.59929477,217.58,217.32,28.52827868]
[1731349773784,4.67388696,217.58,217.3,28.52827868]
[1731349773985,4.59929477,217.58,217.32,28.52827868]
[1731349774211,0.07459219,217.56,217.29,16.2937]
[1731349774508,23.776884,217.54,217.29,16.2937]
[1731349774708,4.59929477,217.53,217.29,16.2937]
[1731349775101,23.776884,217.52,217.29,16.2937]
[1731349775402,23.776884,217.5,217.26,35.15037868]
[1731349775609,23.776884,217.5,217.28,28.52827868]
[1731349776594,27.454784,217.51,217.28,28.52827868]
[1731349776887,27.52937619,217.51,217.26,6.6221]
[1731349777085,4.59929477,217.5,217.26,6.6221]
[1731349777304,23.776884,217.49,217.24,15.4336]
[1731349777495,4.59929477,217.48,217.24,15.4336]
[1731349777812,29.43899082,217.47,217.24,15.4336]
[1731349778102,34.03828559,217.47,217.24,15.4336]
[1731349778312,28.37617877,217.47,217.26,28.52827868]
[1731349779407,27.455484,217.47,217.26,28.52827868]
[1731349779789,27.455484,217.47,217.27,28.52827868]
[1731349779991,27.455484,217.47,217.26,28.52827868]
[1731349780513,27.455484,217.47,217.25,28.52827868]
[1731349782186,23.776884,217.47,217.25,28.52827868]
[1731349782815,28.37617877,217.47,217.25,28.52827868]
[1731349783703,32.05487877,217.47,217.25,28.52827868]
[1731349784320,8.4812678,217.52,217.29,28.52827868]
[1731349784499,16.75846257,217.52,217.29,28.52827868]
[1731349784822,22.14735692,217.52,217.29,28.52827868]
[1731349785020,22.14735692,217.52,217.24,15.4336]
[1731349785021,13.08056257,217.52,217.31,28.52827868]
[1731349785203,2.07509897,217.57,217.35,28.52827868]
[1731349785413,3.6768,217.58,217.35,28.52827868]
[1731349785713,4.59929477,217.57,217.35,28.52827868]
[1731349786113,3.6771,217.56,217.33,28.52827868]
[1731349786615,23.776884,217.55,217.33,28.52827868]
[1731349787509,23.776884,217.55,217.35,28.52827868]
[1731349788600,23.776884,217.53,217.35,28.52827868]
[1731349788801,20.0,217.5,217.35,28.52827868]
[1731349789112,23.776884,217.49,217.35,28.52827868]
[1731349790406,23.776884,217.56,217.35,28.52827868]
[1731349790607,23.776884,217.54,217.35,28.52827868]
[1731349790932,0.1,217.62,217.35,28.52827868]
[1731349790933,10.27657182,217.63,217.4,28.52827868]
[1731349791225,8.27519477,217.63,217.4,28.52827868]
[1731349791425,8.27519477,217.63,217.38,28.52827868]
[1731349792221,20.0,217.6,217.38,28.52827868]
[1731349792824,20.0,217.58,217.38,28.52827868]
[1731349793225,20.0,217.56,217.38,28.52827868]
[1731349793524,20.0,217.54,217.38,28.52827868]
[1731349793701,23.776884,217.53,217.38,28.52827868]
[1731349794515,23.776884,217.53,217.36,23.776884]
[1731349794516,23.776884,217.53,217.4,28.52827868]
[1731349794714,23.776884,217.53,217.38,28.52827868]
[1731349798826,23.776884,217.51,217.32,6.0239]
[1731349799126,20.0,217.5,217.32,6.0239]
[1731349799327,20.0,217.5,217.33,23.776884]
[1731349799921,23.776884,217.51,217.32,34.55217868]
[1731349800225,23.776884,217.49,217.32,34.55217868]
[1731349800412,23.776884,217.49,217.33,28.52827868]
[1731349801029,20.0,217.48,217.26,6.6529]
[1731349801230,20.0,217.46,217.26,35.18117868]
[1731349801443,20.0,217.44,217.27,28.52827868]
[1731349801733,23.776884,217.43,217.27,28.52827868]
[1731349802232,23.776884,217.55,217.33,28.52827868]
[1731349802712,23.776884,217.55,217.34,28.52827868]
[1731349802907,23.776884,217.55,217.27,23.876884]
[1731349803123,8.64176285,217.63,217.34,23.776884]
[1731349803333,3.6759,217.63,217.39,28.52827868]
[1731349803514,5.72256012,217.63,217.39,28.52827868]
[1731349804711,20.0,217.58,217.39,28.52827868]
[1731349805234,20.0,217.56,217.38,28.52827868]
[1731349805416,23.776884,217.55,217.38,28.52827868]
[1731349805620,23.776884,217.53,217.39,28.52827868]
[1731349805825,23.776884,217.53,217.36,24.94463896]
[1731349806032,4.59929477,217.64,217.45,28.52827868]
[1731349806227,8.57205904,217.69,217.38,23.976884]
[1731349806533,8.57205904,217.69,217.45,28.52827868]
[1731349806738,10.66800922,217.69,217.45,28.52827868]
[1731349806932,10.66800922,217.69,217.44,28.52827868]
[1731349807320,3.6753,217.67,217.37,115.6]
[1731349807522,5.0595604,217.66,217.39,28.52827868]
[1731349807728,20.0,217.63,217.4,28.52827868]
[1731349807914,23.776884,217.6,217.39,28.52827868]
[1731349808121,20.0,217.57,217.37,48.52827868]
[1731349808320,4.59929477,217.62,217.38,28.52827868]
[1731349808321,23.776884,217.54,217.38,28.52827868]
[1731349808733,23.776884,217.52,217.37,28.52827868]
[1731349809431,23.776884,217.52,217.38,28.52827868]
[1731349809630,23.776884,217.54,217.38,28.52827868]
[1731349809833,23.776884,217.54,217.4,28.52827868]
[1731349810027,23.776884,217.54,217.37,43.776884]
[1731349810217,23.776884,217.54,217.41,28.52827868]
[1731349810417,23.776884,217.54,217.4,28.52827868]
[1731349811224,23.776884,217.54,217.37,43.776884]
[1731349811436,23.776884,217.54,217.39,28.52827868]
[1731349812331,3.676,217.63,217.37,43.776884]
[1731349812533,23.776884,217.62,217.39,28.52827868]
[1731349813335,27.453084,217.62,217.39,28.52827868]
[1731349813731,23.776884,217.6,217.39,28.52827868]
[1731349815739,32.05257877,217.6,217.35,30.60822611]
[1731349816039,23.776884,217.58,217.35,28.52827868]
[1731349816242,4.59929477,217.57,217.33,28.52827868]
[1731349816426,23.95147619,217.56,217.29,28.52827868]
[1731349816623,23.776884,217.54,217.29,28.52827868]
[1731349816827,23.776884,217.52,217.29,28.52827868]
[1731349817141,23.85147619,217.5,217.24,36.73674668]
[1731349817348,23.776884,217.48,217.24,36.73674668]
[1731349817636,23.776884,217.46,217.24,36.73674668]
[1731349818125,23.776884,217.46,217.25,28.52827868]
[1731349818325,23.776884,217.46,217.28,28.52827868]
[1731349818521,23.776884,217.46,217.24,8.208468]
[1731349818522,23.776884,217.46,217.3,28.52827868]
[1731349819625,23.776884,217.46,217.28,28.52827868]
[1731349822046,23.776884,217.46,217.3,28.52827868]
[1731349823635,23.776884,217.48,217.24,8.208468]
[1731349823920,23.776884,217.46,217.25,20.0]
[1731349824235,23.776884,217.46,217.33,28.52827868]
[1731349825145,8.63680466,217.57,217.39,28.52827868]
[1731349825350,8.63680466,217.57,217.41,28.52827868]
[1731349825650,3.6762,217.62,217.41,28.52827868]
[1731349826020,3.6762,217.62,217.42,28.52827868]
[1731349826224,3.6762,217.62,217.41,28.52827868]
[1731349826642,3.6762,217.62,217.33,43.776884]
[1731349826847,3.6762,217.62,217.4,28.52827868]
[1731349827344,27.453284,217.61,217.4,28.52827868]
[1731349827537,27.453284,217.61,217.37,28.52827868]
[1731349827538,4.59929477,217.6,217.37,28.52827868]
[1731349827757,23.776884,217.59,217.38,28.52827868]
[1731349828457,23.776884,217.59,217.4,28.52827868]
[1731349829457,27.453484,217.59,217.4,28.52827868]
[1731349829641,23.776884,217.59,217.41,28.52827868]
[1731349830336,23.776884,217.61,217.41,28.52827868]
[1731349830737,27.453184,217.61,217.41,28.52827868]
[1731349830960,20.0,217.6,217.41,28.52827868]
[1731349831166,23.6757,217.64,217.41,28.52827868]
[1731349832256,20.0,217.62,217.41,28.52827868]
[1731349832460,23.776884,217.61,217.41,28.52827868]
[1731349832655,23.776884,217.59,217.41,28.52827868]
[1731349832860,20.0,217.58,217.41,28.52827868]
[1731349833363,23.776884,217.55,217.42,28.52827868]
[1731349833564,23.776884,217.55,217.41,28.52827868]
[1731349835562,23.776884,217.55,217.42,28.52827868]
[1731349836365,23.776884,217.55,217.43,28.52827868]
[1731349836664,23.776884,217.55,217.42,28.52827868]
[1731349836850,23.776884,217.55,217.41,28.52827868]
[1731349837049,23.776884,217.55,217.4,28.52827868]
[1731349837255,6.67097451,217.65,217.39,28.52827868]
[1731349837256,23.776884,217.53,217.39,28.52827868]
[1731349839248,23.776884,217.53,217.37,28.52827868]
[1731349839467,23.776884,217.53,217.39,28.52827868]
[1731349839641,20.0,217.64,217.42,28.52827868]
[1731349839844,20.0,217.64,217.43,28.52827868]
[1731349841058,8.27499477,217.65,217.44,28.52827868]
[1731349841059,20.0,217.62,217.44,28.52827868]
[1731349841573,20.0,217.62,217.43,28.52827868]
[1731349841744,20.0,217.6,217.43,28.52827868]
[1731349841940,23.776884,217.59,217.44,28.52827868]
[1731349842143,23.776884,217.57,217.43,28.52827868]
[1731349842348,20.0,217.56,217.42,28.52827868]
[1731349842567,23.776884,217.57,217.44,28.52827868]
[1731349842962,23.776884,217.57,217.43,28.52827868]
[1731349843364,23.776884,217.57,217.44,28.52827868]
[1731349843556,23.776884,217.57,217.43,28.52827868]
[1731349843756,23.776884,217.57,217.42,28.52827868]
[1731349844155,23.776884,217.57,217.43,28.52827868]
[1731349847352,23.776884,217.57,217.42,28.52827868]
[1731349847864,23.776884,217.55,217.39,22.5261]
[1731349848865,23.776884,217.55,217.37,30.53908601]
[1731349849073,23.776884,217.55,217.38,28.52827868]
[1731349849370,43.776884,217.63,217.43,28.52827868]
[1731349849551,20.0,217.63,217.38,0.1]
[1731349849746,20.0,217.63,217.46,28.52827868]
[1731349850074,20.0,217.63,217.47,28.52827868]
[1731349850279,8.60218387,217.64,217.47,28.52827868]
[1731349850570,2.04216247,217.68,217.52,28.52827868]
[1731349850751,3.6739,217.75,217.52,28.52827868]
[1731349850954,9.1833,217.79,217.46,21.9772]
[1731349850955,3.6732,217.79,217.58,28.52827868]
[1731349851152,3.6732,217.79,217.6,28.52827868]
[1731349851353,14.19536386,217.8,217.6,28.52827868]
[1731349851552,14.19536386,217.8,217.61,28.52827868]
[1731349851757,14.19536386,217.8,217.6,28.52827868]
[1731349852261,17.86846386,217.8,217.59,28.52827868]
[1731349852476,20.0,217.79,217.59,28.52827868]
[1731349852661,20.0,217.79,217.6,28.52827868]
[1731349852855,20.0,217.79,217.59,28.52827868]
[1731349853058,20.0,217.79,217.57,22.4709]
[1731349853257,20.0,217.77,217.55,28.52827868]
[1731349853555,20.0,217.75,217.55,28.52827868]
[1731349853956,27.450984,217.74,217.54,28.52827868]
[1731349854160,23.776884,217.72,217.54,28.52827868]
[1731349854374,20.0,217.71,217.54,28.52827868]
[1731349854559,20.0,217.69,217.54,28.52827868]
[1731349854758,23.776884,217.68,217.54,28.52827868]
[1731349855272,20.0,217.69,217.55,28.52827868]
[1731349855580,23.776884,217.68,217.55,28.52827868]
[1731349855757,23.776884,217.68,217.54,28.52827868]
[1731349856381,23.776884,217.68,217.53,28.52827868]
[1731349856679,23.776884,217.66,217.51,44.09347868]
[1731349856980,2.01603878,217.78,217.59,28.52827868]
[1731349857181,23.776884,217.76,217.55,28.52827868]
[1731349857352,23.776884,217.74,217.55,28.52827868]
[1731349857558,23.776884,217.72,217.51,23.776884]
[1731349857753,20.0,217.69,217.54,28.52827868]
[1731349858370,20.0,217.71,217.54,28.52827868]
[1731349858573,20.0,217.69,217.53,28.52827868]
[1731349858773,20.0,217.71,217.54,28.52827868]
[1731349858980,20.0,217.69,217.54,28.52827868]
[1731349859279,20.0,217.69,217.55,28.52827868]
[1731349859485,20.0,217.69,217.54,28.52827868]
[1731349859776,20.0,217.69,217.51,25.84111089]
[1731349859984,20.0,217.69,217.54,28.52827868]
[1731349860162,20.0,217.69,217.55,28.52827868]
[1731349861184,20.0,217.69,217.57,28.52827868]
[1731349861564,20.0,217.69,217.51,25.84111089]
[1731349861565,20.0,217.69,217.56,28.52827868]
[1731349862669,11.83063062,217.79,217.58,28.52827868]